[Event "GER-ch Youth-ODJM 2022"]
[Site "Willingen"]
[Date "2022.06.05"]
[Round "1.16"]
[White "Pick, Max"]
[Black "Hofmann, Lorenz"]
[Result "1/2-1/2"]
[ECO "B01"]
[WhiteElo "1841"]
[BlackElo "2056"]
[Annotator "TA"]
[PlyCount "95"]
[EventDate "2022.06.05"]
[EventType "swiss"]
[EventRounds "9"]
[EventCountry "GER"]
[SourceTitle "playchess.com"]
[Source "ChessBase"]
[SourceQuality "1"]
[TimeControl "40/4500+30:900+30"]

{[%evp 10,95,49,47,83,50,54,44,63,37,41,31,56,0,0,0,72,65,97,89,100,98,101,72,74,68,63,24,29,41,26,18,172,143,145,155,168,176,211,142,153,134,185,182,182,163,200,202,193,137,131,132,243,131,393,338,1310,397,376,65,144,129,5281,1924,1829,1693,930,95,100,0,0,0,0,0,0,0,0,0,0,0,0,0,0,0,0,0,0,0]} 1. e4 {[%emt 0:00:00]} d5 {[%emt 0:00:00]} 2. exd5 {[%emt 0:00:00]} Nf6 {[%emt 0:00:00]} 3. d4 {[%emt 0:00:00]} Nxd5 {[%emt 0:00:00]} 4. Nf3 {[%emt 0:00:00]} Bg4 {[%emt 0:00:00]} 5. Be2 {[%emt 0:00:00]} e6 {[%emt 0:00:00]} 6. O-O {[%emt 0:00:00]} c6 {[%emt 0:00:00] B01: Scandinavian Defence.} 7. Ne5 {[%emt 0:00:00]} Bxe2 {[%emt 0:00:00]} 8. Qxe2 {[%emt 0:00:00]} Bd6 {[%emt 0:00:11] White is slightly better.} 9. Nd2 {[%emt 0:00:00]} Nd7 {[%emt 0:06:36] [#]} 10. Ndc4 $146 {[%emt 0:02:04]} ({Predecessor:} 10. Rd1 Nf4 11. Qg4 Ng6 12. Ne4 Nf6 13. Nxd6+ Qxd6 14. Qe2 Nd7 15. f4 f6 16. Nc4 Qd5 17. f5 Ngf8 18. Bf4 Kf7 19. Nd6+ Kg8 20. c4 {1-0 (20) Stodola,J (2160)-Obrazek,K Prague 1995}) 10... Nxe5 {[%emt 0:06:50]} 11. Nxd6+ {[%emt 0:02:31]} ({Better is} 11. dxe5 $14 Be7 12. Qg4) 11... Qxd6 $11 {[%emt 0:00:21]} 12. dxe5 {[%emt 0:00:07]} Qe7 {[%emt 0:01:52]} (12... Qc7 $11) 13. c4 $16 {[%emt 0:01:44]} Nc7 {[%emt 0:01:29]} 14. Qg4 {[%emt 0:05:01]} O-O-O {[%emt 0:19:51]} 15. Be3 {[%emt 0:02:11]} h5 {[%emt 0:11:57]} 16. Qe4 {[%emt 0:07:24] White is more active.} Kb8 {[%emt 0:03:56]} 17. Qc2 {[%emt 0:08:33]} f5 {[%emt 0:04:45]} 18. f4 {[%emt 0:06:22] Against g5} Na6 $1 {[%emt 0:04:37]} 19. Qf2 {[%emt 0:05:42]} b6 {[%emt 0:01:21]} 20. a4 {[%emt 0:03:27][%cal Ba2a4,Ba4a5,Ba5a6][%mdl 32]} Nc5 $2 {[%emt 0:06:52]} (20... Qb7) (20... c5 $11 {and Black is okay.}) 21. a5 $1 $18 {[%emt 0:02:36]} Ne4 {[%emt 0:02:55]} 22. Qe2 {[%emt 0:01:48]} Kb7 {[%emt 0:02:56]} 23. Ra3 {[%emt 0:04:52]} Qb4 {[%emt 0:02:46]} 24. Rfa1 {[%emt 0:07:32] Threatens to win with axb6.} b5 {[%emt 0:01:36]} 25. cxb5 {[%emt 0:01:39]} cxb5 {[%emt 0:00:24]} (25... Qxb5 $16 {might work better.} 26. a6+ Ka8 27. Qxb5 cxb5) 26. a6+ {[%emt 0:00:17]} Kb8 {[%emt 0:00:38]} 27. Rc1 {[%emt 0:02:35] Inhibits Qc4.} Rc8 {[%emt 0:01:40]} 28. Rd1 {[%emt 0:01:08]} Rhd8 {[%emt 0:02:28][%cal Ob4b2]} 29. Rad3 {[%emt 0:08:13]} (29. h3 $18) 29... Rxd3 $16 {[%emt 0:00:47]} 30. Rxd3 {[%emt 0:05:44]} Qa4 {[%emt 0:01:10]} (30... Qc4 $16) 31. h3 {[%emt 0:03:59]} ({Only move:} 31. h4 $1 $18) 31... Ng3 $2 {[%emt 0:01:53][%mdl 8192]} (31... Qxa6 $16 32. Ra3 Qc6) 32. Qf3 $18 {[%emt 0:00:23][%csl Ga6][%cal Rf3b7]} Qe4 {[%emt 0:00:27] [#] Inhibits Qb7+.} (32... Ne4 33. Rd7 Qxa6 34. Rxa7 Qc6 35. Rxg7 Rc7 36. Qxh5 Kb7) 33. Bxa7+ $2 {[%emt 0:02:00]} (33. Qxg3 $1 g6 (33... g5 34. fxg5) 34. Rd7) 33... Kxa7 {[%emt 0:00:14]} 34. Qxg3 {[%emt 0:00:08][%mdl 4096] Endgame KQR-KQR} (34. Rd7+ $18 Ka8 35. Qxg3) 34... Rc1+ {[%emt 0:01:02]} (34... b4 $1 $14) 35. Kh2 $16 {[%emt 0:00:08]} Qe1 $2 {[%emt 0:00:37][%mdl 8192]} (35... b4 $16) 36. Rd7+ {[%emt 0:02:14]} (36. Qxg7+ $142 Kxa6 37. Rd6+ Ka5 38. Qa7+ Kb4 39. Qa3+ Kc4 40. Qd3+ Kb4 41. Rd4+ Kc5 42. b4+ Kb6 43. Rd6+ Rc6 44. Qd4+ Kb7 45. Rd7+ Rc7 46. Rxc7+ Kxc7 47. Qd6+ Kb7 48. Qd7+ Kb8 49. Qd8+ Kb7 50. Qd7+ Ka8 51. Qxe6) 36... Kb6 $18 {[%emt 0:00:41]} 37. Rd6+ {[%emt 0:00:29]} Kc5 {[%emt 0:00:21][%cal Bb6c5,Bc5c4,Bc4b3][%mdl 32]} 38. Qa3+ $2 {[%emt 0:01:28]} (38. Qxe1 $18 {is more deadly.} Rxe1 39. Rxe6) 38... b4 $16 {[%emt 0:00:08] [#]} 39. Qa5+ {[%emt 0:00:05] Chess con chili.} (39. Qf3 $1 $16 {[%csl Gd6][%cal Rf3c6]} Qg1+ 40. Kg3 Qe1+ 41. Qf2+ (41. Kh2 Qg1+ 42. Kg3 Qe1+ 43. Qf2+ Qxf2+ 44. Kxf2 Rc2+ 45. Ke3 Rxb2 $16) 41... Qxf2+ 42. Kxf2 Rc2+ 43. Ke3 Rxb2 44. Rxe6) 39... Kc4 $11 {[%emt 0:00:06] White must now prevent ...Qg1+. The position is equal.} 40. Rc6+ {[%emt 0:02:08]} Kb3 {[%emt 0:00:15] ( -> ...Qg1+)} 41. Rxc1 {[%emt 0:00:00]} (41. Rxe6 h4 42. Qd5+ Kxb2 43. Qd4+ Ka3 44. Qd3+ b3) 41... Qxc1 {[%emt 0:00:00] KQ-KQ} 42. Qb6 {[%emt 0:00:00]} Qxf4+ {[%emt 0:00:00]} 43. Kg1 {[%emt 0:00:00]} Qc1+ {[%emt 0:00:00]} 44. Kf2 {[%emt 0:00:00] And now Qe3+ would win.} Qf4+ {[%emt 0:00:00]} (44... Qxb2+ 45. Kf3 Kc4 46. Qc6+ (46. Qxe6+ Kb5 $16) 46... Kd4 47. Qd7+ (47. Qxe6 Qc3+ 48. Kf4 Qc1+ 49. Kxf5 Qc2+ 50. Kg5 b3 $16) (47. Qd6+ Kc4 $16) 47... Kc5 48. Qc7+ (48. Qxe6 Qc3+ 49. Kf4 Qd2+ 50. Kxf5 Qf2+ 51. Kg6 Qxg2+ 52. Kf7 Qf3+ 53. Kxg7 b3 $18) 48... Kd4 49. a7 (49. Qd6+ Kc4 $16) 49... Qb3+ 50. Kf2 Qe3+ 51. Kf1 $18) 45. Ke2 {[%emt 0:00:00]} Qc4+ {[%emt 0:00:00]} 46. Kf2 {[%emt 0:00:00] Hoping for a7.} Qf4+ 47. Ke2 {[%emt 0:00:00]} Qc4+ {[%emt 0:00:00]} 48. Kf2 {Black escapes into a draw.  Weighted Error Value: White=0.54/Black=0.30} 1/2-1/2

[Event "GER-ch Youth-ODJM 2022"]
[Site "Willingen"]
[Date "2022.06.05"]
[Round "1.17"]
[White "Irkilmez, Yakub"]
[Black "Fock, Amina"]
[Result "1/2-1/2"]
[ECO "B07"]
[WhiteElo "2169"]
[BlackElo "1790"]
[Annotator "TA"]
[PlyCount "111"]
[EventDate "2022.06.05"]
[EventType "swiss"]
[EventRounds "9"]
[EventCountry "GER"]
[SourceTitle "playchess.com"]
[Source "ChessBase"]
[SourceQuality "1"]
[TimeControl "40/4500+30:900+30"]

{[%evp 17,111,44,45,6,10,10,11,-54,15,17,25,17,25,29,21,14,39,45,87,68,68,55,61,45,46,39,46,51,60,0,0,0,0,-18,-4,-12,-12,-29,-27,-20,0,-4,-2,-8,0,0,63,61,100,96,99,63,64,31,121,121,121,121,121,121,121,121,128,103,183,183,158,22,22,14,14,14,14,14,118,118,121,121,121,121,121,121,121,118,118,118,118,118,118,118,118,118,118,118,118,118]} 1. e4 {[%emt 0:00:00]} d6 {[%emt 0:00:00]} 2. d4 {[%emt 0:00:00]} Nf6 {[%emt 0:00:00]} 3. Nc3 {[%emt 0:00:00]} Nbd7 {[%emt 0:00:00]} 4. f4 {[%emt 0:00:00]} e5 {[%emt 0:00:00]} 5. Nf3 {[%emt 0:00:21]} exd4 {[%emt 0:00:00]} 6. Nxd4 {[%emt 0:03:57]} Be7 {[%emt 0:00:00]} 7. Be2 {[%emt 0:03:09]} O-O {[%emt 0:05:39]} 8. O-O {[%emt 0:02:39]} Re8 {[%emt 0:01:58]} 9. Bf3 {[%emt 0:04:07]} Bf8 {[%emt 0:03:36]} 10. Nb3 {[%emt 0:06:25] C41: Philidor Defence.} a5 {[%emt 0:03:16]} 11. a4 {[%emt 0:01:24]} c6 {[%emt 0:00:50] [#]} 12. Be3 $146 {[%emt 0:04:15] [#]} (12. Qd4 $11) ({Predecessor:} 12. Kh1 Qc7 13. Re1 Nb6 14. Nd4 Nfd7 15. b3 Nc5 16. Be3 Bd7 17. Qd2 Rad8 18. Bf2 {1-0 (31) Siuniakov,I (2282)-Anisimov,V (2216) Kemerovo 2008}) 12... d5 {[%emt 0:11:32]} (12... Nxe4 $1 $15 13. Bxe4 (13. Nxe4 d5 $11) 13... d5) 13. e5 $11 {[%emt 0:01:28] Hoping for Bd4.} Nb6 {[%emt 0:04:58]} 14. Bf2 {[%emt 0:08:12]} Nfd7 {[%emt 0:00:55]} 15. Nd4 {[%emt 0:01:12]} Nc5 {[%emt 0:00:55]} 16. b3 {[%emt 0:07:00]} Ne6 {[%emt 0:08:38]} 17. Nce2 {[%emt 0:01:05]} c5 {[%emt 0:07:06]} 18. Nb5 {[%emt 0:01:39]} Bd7 {[%emt 0:09:30]} 19. Nd6 {[%emt 0:05:47]} Bxd6 {[%emt 0:03:10]} 20. exd6 {[%emt 0:00:06]} Qf6 {[%emt 0:05:42]} 21. Bxd5 {[%emt 0:04:01]} Nxd5 {[%emt 0:00:25]} 22. Qxd5 {[%emt 0:00:07]} Bc6 {[%emt 0:00:08]} 23. Qd3 {[%emt 0:00:53]} ({Better is} 23. Qc4 $14) 23... Nxf4 {[%emt 0:02:51]} 24. Nxf4 {[%emt 0:00:18]} Qxf4 {[%emt 0:00:06]} 25. Bg3 {[%emt 0:01:27]} ({Reject} 25. d7 Red8 $15) 25... Qe4 {[%emt 0:03:11]} 26. Qxe4 {[%emt 0:01:20] Active counter play!} Rxe4 {[%emt 0:00:19]} 27. Rae1 {[%emt 0:01:04]} Rxe1 {[%emt 0:03:59]} 28. Rxe1 {[%emt 0:00:07][%mdl 4096] Endgame KRB-KRB} Rd8 {[%emt 0:00:41]} 29. Re7 {[%emt 0:01:53]} f6 {[%emt 0:00:25]} 30. Kf2 {[%emt 0:11:22]} Kf8 {[%emt 0:02:49]} 31. Rc7 {[%emt 0:02:26]} Re8 {[%emt 0:02:45]} (31... Rd7 $11) 32. Bf4 $14 {[%emt 0:03:36]} Rd8 {[%emt 0:03:08]} 33. Be3 {[%emt 0:01:33]} Rd7 {[%emt 0:00:29]} 34. Bxc5 {[%emt 0:00:55]} Ke8 {[%emt 0:00:54]} 35. c4 {[%emt 0:03:41]} Rxc7 {[%emt 0:01:24]} (35... Be4 $14) 36. dxc7 {[%emt 0:00:06] KB-KB} Kd7 {[%emt 0:00:01]} 37. Bb6 {[%emt 0:00:47]} Be4 {[%emt 0:00:40]} 38. Bxa5 {[%emt 0:00:54]} Bc2 {[%emt 0:00:11] [#]} 39. b4 {[%emt 0:00:11][%cal Bb3b4,Bb4b5][%mdl 32]} Bxa4 {[%emt 0:00:06]} 40. b5 {[%emt 0:00:53]} Bb3 {[%emt 0:00:41]} (40... b6 $16 {was called for.} 41. Bxb6 Bb3) 41. c5 $18 {[%emt 0:15:11]} Bc4 {[%emt 0:15:24]} 42. c6+ {[%emt 0:00:15]} (42. b6 $16) 42... bxc6 $11 {[%emt 0:00:26]} 43. b6 {[%emt 0:00:00] Intending b7 and mate.} Ba6 {[%emt 0:00:00]} 44. Bb4 {[%emt 0:00:00]} Ke6 $1 {[%emt 0:00:00]} 45. Ke3 {[%emt 0:00:00]} Bb7 {[%emt 0:01:03]} (45... Ke5 $11 {remains equal.}) 46. Kd4 $16 {[%emt 0:00:00] White is better.} f5 {[%emt 0:01:56]} 47. Bd2 {[%emt 0:00:00]} Kd6 {[%emt 0:01:34]} 48. Bf4+ {[%emt 0:00:00]} Ke6 {[%emt 0:00:06]} 49. Kc5 {[%emt 0:00:00]} Kd7 {[%emt 0:00:07]} 50. Be5 {[%emt 0:00:00]} g5 {[%emt 0:00:32]} 51. Bf6 {[%emt 0:00:00]} g4 {[%emt 0:00:21]} 52. Bg5 {[%emt 0:00:00]} Ba8 {[%emt 0:01:09]} 53. g3 {[%emt 0:00:00]} Bb7 {[%emt 0:00:10]} 54. Bh6 {[%emt 0:00:00]} Bc8 {[%emt 0:00:30]} 55. Kd4 {[%emt 0:00:00]} Kd6 {[%emt 0:00:46]} 56. Bf8+ {[%emt 0:00:00] Weighted Error Value: White=0.15 (very precise) /Black=0.16 (very precise)} 1/2-1/2

[Event "GER-ch Youth-ODJM 2022"]
[Site "Willingen"]
[Date "2022.06.05"]
[Round "1.18"]
[White "Zha, Kevin"]
[Black "Dornieden, Jonas"]
[Result "0-1"]
[ECO "B06"]
[WhiteElo "1835"]
[BlackElo "2072"]
[Annotator "TA"]
[PlyCount "88"]
[EventDate "2022.06.05"]
[EventType "swiss"]
[EventRounds "9"]
[EventCountry "GER"]
[SourceTitle "playchess.com"]
[Source "ChessBase"]
[SourceQuality "1"]
[TimeControl "40/4500+30:900+30"]

{[%evp 12,88,63,47,56,57,52,49,58,60,104,72,99,65,75,49,95,63,76,81,182,100,140,89,99,90,95,85,90,-47,-50,-52,-45,-58,25,-58,-30,-72,-50,-49,-47,-98,-86,-91,-85,-97,-68,-70,-45,-54,-41,-100,-38,-42,-48,-72,-64,-116,-117,-260,-265,-354,-341,-379,-309,-433,-367,-474,-420,-366,-338,-702,-493,-1053,-970,-5591,-5056,-29987,-29988]} 1. e4 {[%emt 0:00:00]} g6 {[%emt 0:00:00]} 2. d4 {[%emt 0:00:00]} Bg7 {[%emt 0:00:00]} 3. Nc3 {[%emt 0:00:00]} c6 {[%emt 0:00:00]} 4. Be3 {[%emt 0:01:07]} d5 {[%emt 0:00:00]} 5. Qd2 {[%emt 0:04:47]} Nf6 {[%emt 0:02:47]} 6. e5 {[%emt 0:06:48]} Ng4 {[%emt 0:05:29]} 7. Bf4 {[%emt 0:06:16]} f6 $1 {[%emt 0:18:51] B15: Caro-Kann: 3 Nc3: 3...g6 and 3...dxe4 4 Nxe4 Nf6 5 Nxf6+ exf6.} 8. exf6 {[%emt 0:12:27]} Nxf6 {[%emt 0:01:36]} 9. Nf3 {[%emt 0:02:55]} Nbd7 {[%emt 0:01:58] White is slightly better.} 10. O-O-O {[%emt 0:02:55] [#]} Nf8 $146 {[%emt 0:10:09]} ({Predecessor:} 10... Nh5 11. Bg5 O-O 12. Re1 Bf6 13. h4 Rf7 14. g4 Ng7 15. h5 Nf8 16. hxg6 Nxg6 17. Bxf6 exf6 {1-0 (27) Sadilek,M (2170)-Ranits,F (2242) Austria 2007}) 11. Ne5 {[%emt 0:06:53]} Bf5 {[%emt 0:03:48]} 12. f3 {[%emt 0:01:36]} N6d7 {[%emt 0:05:17]} 13. Qe3 {[%emt 0:06:53]} g5 {[%emt 0:08:25]} (13... Ne6 $14 {should be considered.}) 14. Bxg5 {[%emt 0:03:45] g4 is the strong threat.} Nxe5 {[%emt 0:00:18]} 15. dxe5 {[%emt 0:00:27]} h6 {[%emt 0:13:06] [#]} (15... Qb6 $16) 16. Bf4 {[%emt 0:02:50]} (16. Bf6 $1 $18 {[%cal Rf6g7][%mdl 512]} Bxf6 17. exf6) 16... Ne6 {[%emt 0:00:07]} 17. Ne2 {[%emt 0:01:34] Against d4} (17. g4 $142 Bg6 18. Bg3) 17... Qa5 {[%emt 0:05:59]} 18. Kb1 $1 {[%emt 0:02:10]} Qa4 {[%emt 0:01:56]} 19. Rd2 {[%emt 0:12:13]} O-O-O {[%emt 0:02:55] [#]} 20. Bg3 {[%emt 0:03:35]} (20. b3 $1 $16 {[%cal Rb3a4]} Qb4 21. Nd4) 20... d4 $1 $36 {[%emt 0:00:10][%mdl 2048] Black is pushing.} 21. Qa3 {[%emt 0:00:57]} Qxa3 {[%emt 0:00:52]} 22. bxa3 {[%emt 0:00:04]} Rd5 {[%emt 0:01:32]} (22... d3 $15 23. cxd3 Rxd3 24. Rxd3 Bxd3+ 25. Kc1 h5) 23. f4 {[%emt 0:01:52]} (23. Nc1 $11) 23... h5 {[%emt 0:00:16]} 24. Bf2 {[%emt 0:00:55]} d3 {[%emt 0:00:24] 0x0.001b6d3881a6dp-1022s more active pieces.} 25. cxd3 {[%emt 0:01:56]} Bxd3+ {[%emt 0:00:07]} 26. Kc1 {[%emt 0:00:39]} (26. Rxd3 $15 Rxd3 27. g3) 26... Bxe2 $17 {[%emt 0:01:00]} 27. Bxe2 {[%emt 0:01:37] Strongly threatening Rxd5.} Nxf4 {[%emt 0:00:26]} 28. Bc4 {[%emt 0:01:23]} Rxd2 {[%emt 0:00:19]} 29. Kxd2 {[%emt 0:00:04]} Rd8+ {[%emt 0:00:38]} ({Much worse is} 29... Nxg2 30. Rg1 Bh6+ 31. Kd3 Nf4+ 32. Ke4 $11) 30. Kc2 $1 {[%emt 0:00:56]} Bxe5 {[%emt 0:00:28]} 31. Bxa7 {[%emt 0:00:47]} ({Better is} 31. g3 $15 Nd5 32. Bxa7) 31... Kc7 {[%emt 0:00:35]} (31... Nxg2 $17 {White must now prevent ...Bd4.} 32. Bb6 Bc7) 32. g3 {[%emt 0:00:32]} Nd5 {[%emt 0:00:45] aiming for ...b6.} 33. Bc5 {[%emt 0:00:25] [#]} Bd6 $1 {[%emt 0:01:02]} 34. Bxd5 {[%emt 0:00:14]} (34. Bxd6+ $15 Kxd6 35. Kb3) 34... cxd5 $15 {[%emt 0:00:23][%mdl 4096] Endgame KRB-KRB} ({Stronger than} 34... Bxc5 35. Bf7 $15) 35. Bd4 {[%emt 0:00:52] Now White is beyond hope.} (35. Bxd6+ $17 Kxd6 36. Rb1) 35... e5 $19 {[%emt 0:00:10][%cal Be7e5,Be5e4][%mdl 32]} ({Worse is} 35... Bxa3 36. Rf1 $17) 36. Bb2 {[%emt 0:00:05]} Rf8 {[%emt 0:00:20] Against Rf1} 37. Rd1 {[%emt 0:00:50]} Kc6 {[%emt 0:00:16]} 38. Rd2 {[%emt 0:00:06]} (38. h3 $142) 38... Rf3 {[%emt 0:01:03]} 39. Rg2 {[%emt 0:00:31]} e4 {[%emt 0:00:13]} 40. a4 {[%emt 0:00:46]} Bc5 {[%emt 0:00:10] And now ...d4 would win.} 41. h3 $2 {[%emt 0:15:39]} (41. g4 hxg4 42. Rxg4) 41... Be3 {[%emt 0:00:00]} 42. Kd1 {[%emt 0:00:00]} (42. g4 $142 d4 43. gxh5) 42... d4 {[%emt 0:00:00][%cal Bd5d4,Bd4d3][%mdl 32] Threatens to win with ...d3.} 43. g4 {[%emt 0:00:00]} d3 {[%emt 0:00:00][%cal Rf3f1]} 44. Ke1 {[%emt 0:00:00] Against Rf1+} Rxh3 {[%emt 0:00:00] Weighted Error Value: White=0.92/Black=0.26 (precise)} 0-1

[Event "GER-ch Youth-ODJM 2022"]
[Site "Willingen"]
[Date "2022.06.05"]
[Round "1.19"]
[White "Bartelt, Max Peter"]
[Black "Scherer, Josua"]
[Result "0-1"]
[ECO "C06"]
[WhiteElo "1959"]
[BlackElo "1775"]
[Annotator "TA"]
[PlyCount "134"]
[EventDate "2022.06.05"]
[EventType "swiss"]
[EventRounds "9"]
[EventCountry "GER"]
[SourceTitle "playchess.com"]
[Source "ChessBase"]
[SourceQuality "1"]
[TimeControl "40/4500+30:900+30"]

{[%evp 23,134,23,28,30,34,35,51,41,48,48,43,29,24,16,2,0,0,0,0,0,-22,-12,0,-8,0,-24,-25,-31,-32,-9,0,0,0,0,0,0,0,7,59,-12,-12,-12,-7,-29,0,0,0,0,14,0,112,28,37,39,37,26,39,35,49,14,14,20,15,21,22,-10,-14,-24,-2,-41,0,0,0,0,0,0,0,0,0,0,12,0,11,-11,0,-66,-20,-145,-142,-296,-297,-454,-447,-461,-450,-334,-187,-413,-388,-623,-409,-618,-612,-603,-438,-526,-495,-533,-501,-471,-347,-4133,-960]} 1. e4 {[%emt 0:00:00]} e6 {[%emt 0:00:00]} 2. d4 {[%emt 0:00:00]} d5 {[%emt 0:00:00]} 3. Nd2 {[%emt 0:00:00]} Nf6 {[%emt 0:00:00]} 4. e5 {[%emt 0:00:00]} Nfd7 {[%emt 0:00:00]} 5. Bd3 {[%emt 0:00:00]} c5 {[%emt 0:00:00]} 6. c3 {[%emt 0:00:00]} Nc6 {[%emt 0:00:00]} 7. Ne2 {[%emt 0:00:00]} cxd4 {[%emt 0:00:00]} 8. cxd4 {[%emt 0:00:00]} Qb6 {[%emt 0:00:00]} 9. Nf3 {[%emt 0:00:00]} f6 {[%emt 0:00:00]} 10. exf6 {[%emt 0:00:00]} Nxf6 {[%emt 0:00:00]} 11. O-O {[%emt 0:00:00]} Bd6 {[%emt 0:00:00]} 12. Nc3 {[%emt 0:00:00]} O-O {[%emt 0:00:00]} (12... Nxd4 $2 13. Nxd4 a6 14. Be3 $18) 13. h3 {[%emt 0:01:23] C06: French Tarrasch: 3...Nf6 4 e5 Nfd7 5 Bd3 main lines.} Bd7 {[%emt 0:00:00]} 14. Re1 {[%emt 0:00:53]} Rae8 {[%emt 0:00:00]} 15. Be3 {[%emt 0:06:25] [#] White is slightly better.} Ne7 $146 {[%emt 0:00:00]} (15... Qxb2 $2 16. Na4 Qa3 17. Bc1 $18) ({Predecessor:} 15... Qd8 16. Rc1 Re7 17. a3 Be8 18. b4 Bh5 19. Be2 a5 20. b5 Nb8 21. Qb3 Nbd7 {1-0 (40) Vovk,A (2636)-Jarvenpaa,J (2244) Fagernes 2017}) 16. Ne5 {[%emt 0:08:55]} Bc6 {[%emt 0:00:57]} 17. Nxc6 {[%emt 0:12:22]} bxc6 {[%emt 0:02:28]} 18. Na4 {[%emt 0:00:58]} Qc7 {[%emt 0:00:43]} 19. Rc1 {[%emt 0:05:31]} Nf5 $1 {[%emt 0:09:58]} 20. Nc5 {[%emt 0:11:26][%cal Oc5e6] Hoping for Nxe6!} Nxe3 {[%emt 0:05:41]} 21. Rxe3 {[%emt 0:02:57]} (21. fxe3 e5 $17) 21... e5 {[%emt 0:03:32]} 22. dxe5 {[%emt 0:01:02]} Bxe5 {[%emt 0:00:18]} 23. Re2 {[%emt 0:05:03]} Qd6 {[%emt 0:05:28]} (23... Nh5 {seems wilder.} 24. Rec2 Qf7 25. Nd7 Qxd7 26. Qxh5 g6) 24. Rec2 {[%emt 0:06:59]} Bh2+ {[%emt 0:03:24]} 25. Kh1 {[%emt 0:00:37]} Bf4 {[%emt 0:00:15]} 26. Rb1 {[%emt 0:00:15]} Re7 {[%emt 0:05:12]} 27. Be2 {[%emt 0:03:18]} Rfe8 {[%emt 0:10:40][%cal Oe7e2] And now ...Rxe2! would win.} 28. Bf3 {[%emt 0:02:33]} Be5 {[%emt 0:08:45][%cal Oe5b2]} 29. Nd3 {[%emt 0:04:20]} Bd4 {[%emt 0:00:51]} 30. b4 {[%emt 0:01:47]} Nd7 {[%emt 0:06:19]} (30... Ne4 $11) 31. Re2 {[%emt 0:05:38]} (31. Rbc1 $14) 31... Rxe2 $11 {[%emt 0:03:07]} 32. Bxe2 {[%emt 0:00:02]} Ne5 {[%emt 0:05:05]} 33. Qc2 {[%emt 0:02:12]} Qg6 {[%emt 0:03:19]} 34. Rc1 {[%emt 0:01:42]} Nc4 {[%emt 0:02:57]} 35. Qd1 {[%emt 0:02:49] Bh5 is the strong threat.} Qg5 {[%emt 0:04:57]} 36. Bf3 {[%emt 0:02:37]} Qh4 {[%emt 0:04:30]} (36... Kh8 $11) 37. Rc2 {[%emt 0:00:23]} (37. Qa4 $16 {Strongly threatening Bxd5+.} Rc8 38. Qa6) 37... Bb6 {[%emt 0:01:41]} 38. b5 {[%emt 0:01:23]} cxb5 {[%emt 0:03:10]} 39. Bxd5+ Kh8 {[%emt 0:00:10]} 40. Qf3 {[%emt 0:01:21]} Qd4 {[%emt 0:01:24]} ({But not} 40... Rd8 41. Bxc4 bxc4 42. Ne5 $16) 41. Qf7 {[%emt 0:03:18][%cal Rf7e8]} Nd6 {[%emt 0:00:00] [#]} 42. Re2 $1 {[%emt 0:01:36]} Rd8 {[%emt 0:00:00]} 43. Qf3 {[%emt 0:01:16] Black must now prevent Ne5.} Qf6 {[%emt 0:00:12]} 44. Qh5 {[%emt 0:03:29]} g6 {[%emt 0:01:15]} 45. Qg4 {[%emt 0:01:32]} Qf5 {[%emt 0:01:12]} 46. Ne5 {[%emt 0:02:27]} Qxg4 {[%emt 0:02:27]} (46... Bxf2 $5 {[%cal Rf5b1]} 47. Nf7+ (47. Qxf5 Nxf5 48. Rxf2 Rxd5 $17) 47... Nxf7 48. Qxf5 gxf5 49. Bxf7 Bh4 $15) 47. hxg4 {[%emt 0:00:02]} Kg7 {[%emt 0:00:41]} 48. Nd3 {[%emt 0:02:33]} Re8 {[%emt 0:01:31]} 49. Rc2 {[%emt 0:01:40]} Ne4 {[%emt 0:01:28]} 50. g3 {[%emt 0:00:51]} Nf6 {[%emt 0:01:19][%csl LRd5,LRg4]} 51. Bf3 {[%emt 0:01:15]} Rd8 {[%emt 0:00:35]} 52. Ne5 {[%emt 0:00:38]} Rd4 {[%emt 0:00:46]} 53. Nc6 {[%emt 0:00:42]} Ra4 {[%emt 0:02:14]} 54. Be2 {[%emt 0:00:30]} (54. g5 $11 Ng4 55. Bxg4 Rxg4 56. Nxa7) 54... Nxg4 {[%emt 0:01:39]} (54... Ne4 $15 55. Bxb5 Ra3) 55. Bxb5 {[%emt 0:00:07]} (55. Bxg4 $11 {keeps the balance.} Rxg4 56. Nxa7) 55... Ra3 $17 {[%emt 0:00:42]} 56. Kg2 $2 {[%emt 0:01:04] [#] Now White is beyond hope.} (56. Be2 $17 Nxf2+ 57. Kg2) 56... Bxf2 $1 $19 57. Rxf2 {[%emt 0:00:01]} (57. Rd2 $142) 57... Nxf2 {[%emt 0:01:21]} 58. Kxf2 {[%emt 0:00:01]} Rxa2+ {[%emt 0:00:06]} 59. Ke3 {[%emt 0:00:25]} Kf6 {[%emt 0:00:17]} (59... a5 $142 60. Bc4 Ra3+ 61. Bd3 a4) 60. Bd3 $2 {[%emt 0:01:38]} (60. Nb4 Rg2 61. Kf4) 60... a5 {[%emt 0:00:31]} 61. Kd4 $2 {[%emt 0:00:32]} (61. Bc4 Ra3+ 62. Bd3) 61... h5 {[%emt 0:00:35]} 62. Be4 {[%emt 0:00:31]} (62. Ne5 $142 g5 63. Nd7+ Kg7 64. Nc5) 62... Kg5 {[%emt 0:00:18]} 63. Ne5 {[%emt 0:00:14]} Ra4+ {[%emt 0:01:43]} 64. Ke3 {[%emt 0:00:01]} Ra3+ {[%emt 0:00:18]} 65. Kf2 {[%emt 0:00:09]} Ra2+ {[%emt 0:00:46]} 66. Ke3 {[%emt 0:00:11]} Rb2 {[%emt 0:00:05] Threatens to win with ...a4.} 67. Bxg6 $2 {[%emt 0:01:52]} (67. Bc6 Ra2 68. Bd5 Ra3+ 69. Kf2) 67... Rb5 {[%emt 0:00:34] Weighted Error Value: White=0.27 (precise) /Black=0.14 (very precise)} 0-1